[Event "2026 Biel Blitz Open"]
[Site "Biel, CH"]
[Date "2026.07.19"]
[Round "6"]
[White "Savitha Shri B"]
[Black "Amonatov, Farrukh"]
[Result "1-0"]
[Board "4"]
[TimeControl "180+2"]
[WhiteFideId "35061887"]
[BlackFideId "14700077"]
[WhiteElo "2161"]
[BlackElo "2585"]
[WhiteTitle "IM"]
[BlackTitle "GM"]
[WhiteClock "0:00:16"]
[BlackClock "0:00:14"]
[Variant "Standard"]
[EndDate "2026.07.19"]
[EndTime "13:29:25"]

1. e4 {[%clk 0:03:03]}  c5 {[%clk 0:02:58]} 2. Nf3 {[%clk 0:03:04]}  d6 {[%clk 0:02:59]} 3. d4 {[%clk 0:03:05]}  cxd4 {[%clk 0:03:00]}
4. Nxd4 {[%clk 0:03:06]}  Nf6 {[%clk 0:03:01]} 5. Nc3 {[%clk 0:03:07]}  a6 {[%clk 0:03:03]} 6. Be3 {[%clk 0:03:09]}  e5 {[%clk 0:03:03]}
7. Nb3 {[%clk 0:03:10]}  Be6 {[%clk 0:03:03]} 8. h3 {[%clk 0:03:12]}  Be7 {[%clk 0:03:03]} 9. Qf3 {[%clk 0:03:12]}  Nbd7 {[%clk 0:03:03]}
10. O-O-O {[%clk 0:03:12]}  Rc8 {[%clk 0:03:05]} 11. Nd5 {[%clk 0:03:00]}  O-O {[%clk 0:03:02]} 12. g4 {[%clk 0:03:00]}  Bxd5 {[%clk 0:02:47]}
13. exd5 {[%clk 0:03:01]}  Nb6 {[%clk 0:02:40]} 14. Kb1 {[%clk 0:02:36]}  e4 {[%clk 0:02:21]} 15. Qg2 {[%clk 0:02:37]}  Nbxd5 {[%clk 0:02:05]}
16. g5 {[%clk 0:02:39]}  Nxe3 {[%clk 0:02:05]} 17. fxe3 {[%clk 0:02:40]}  Nd7 {[%clk 0:02:00]} 18. Qxe4 {[%clk 0:02:39]}  Bxg5 {[%clk 0:01:57]}
19. Qxb7 {[%clk 0:02:20]}  Ne5 {[%clk 0:01:47]} 20. Bxa6 {[%clk 0:02:13]}  Rc7 {[%clk 0:01:41]} 21. Qe4 {[%clk 0:02:14]}  g6 {[%clk 0:01:36]}
22. Rhf1 {[%clk 0:02:05]}  Re8 {[%clk 0:01:34]} 23. Qd4 {[%clk 0:01:37]}  Bf6 {[%clk 0:01:18]} 24. Qb4 {[%clk 0:01:30]}  Bg7 {[%clk 0:01:06]}
25. Rxd6 {[%clk 0:01:22]}  Qg5 {[%clk 0:01:00]} 26. Qf4 {[%clk 0:01:13]}  Qg2 {[%clk 0:01:01]} 27. Qf2 {[%clk 0:01:07]}  Qxh3 {[%clk 0:00:59]}
28. e4 {[%clk 0:00:55]}  h5 {[%clk 0:00:46]} 29. a4 {[%clk 0:00:55]}  Qg4 {[%clk 0:00:29]} 30. Bb5 {[%clk 0:00:53]}  Rec8 {[%clk 0:00:32]}
31. Rd2 {[%clk 0:00:26]}  Qxe4 {[%clk 0:00:29]} 32. a5 {[%clk 0:00:26]}  Qb4 {[%clk 0:00:26]} 33. Qb6 {[%clk 0:00:22]}  Qe4 {[%clk 0:00:09]}
34. Rc1 {[%clk 0:00:21]}  Bh6 {[%clk 0:00:06]} 35. Rd8+ {[%clk 0:00:20]}  Kg7 {[%clk 0:00:09]} 36. Rxc8 {[%clk 0:00:12]}  Rxc8 {[%clk 0:00:10]}
37. Rf1 {[%clk 0:00:14]}  Qxc2+ {[%clk 0:00:10]} 38. Ka2 {[%clk 0:00:15]}  Bg5 {[%clk 0:00:09]} 39. Qb7 {[%clk 0:00:14]}  Rc7 {[%clk 0:00:09]}
40. Qd5 {[%clk 0:00:14]}  Re7 {[%clk 0:00:05]} 41. a6 {[%clk 0:00:15]}  Qc7 {[%clk 0:00:06]} 42. Nd4 {[%clk 0:00:14]}  Qb6 {[%clk 0:00:06]}
43. Nc6 {[%clk 0:00:14]}  Nxc6 {[%clk 0:00:06]} 44. Qxc6 {[%clk 0:00:14]}  Qa5+ {[%clk 0:00:07]} 45. Kb1 {[%clk 0:00:13]}  Qb4 {[%clk 0:00:08]}
46. Bc4 {[%clk 0:00:10]}  Qa5 {[%clk 0:00:07]} 47. Qd5 {[%clk 0:00:10]}  Qb6 {[%clk 0:00:07]} 48. Rxf7+ {[%clk 0:00:11]}  Rxf7 {[%clk 0:00:08]}
49. Qxf7+ {[%clk 0:00:12]}  Kh6 {[%clk 0:00:10]} 50. Qf8+ {[%clk 0:00:13]}  Kh7 {[%clk 0:00:11]} 51. Bg8+ {[%clk 0:00:14]}  Kh8 {[%clk 0:00:12]}
52. Bf7+ {[%clk 0:00:15]}  Kh7 {[%clk 0:00:14]} 53. Qg8+ {[%clk 0:00:16]} 1-0

[Event "2026 Biel Blitz Open"]
[Site "Biel, CH"]
[Date "2026.07.19"]
[Round "6"]
[White "Kozak, Adam"]
[Black "Cao, Qingfeng"]
[Result "1-0"]
[Board "5"]
[TimeControl "180+2"]
[WhiteFideId "753246"]
[BlackFideId "8627568"]
[WhiteElo "2537"]
[BlackElo "2264"]
[WhiteTitle "GM"]
[BlackTitle "IM"]
[WhiteClock "0:00:15"]
[BlackClock "0:00:04"]
[Variant "Standard"]
[EndDate "2026.07.19"]
[EndTime "13:28:34"]

1. Nf3 {[%clk 0:03:02]}  Nf6 {[%clk 0:03:03]} 2. b3 {[%clk 0:03:03]}  c5 {[%clk 0:03:03]} 3. Bb2 {[%clk 0:03:03]}  Nc6 {[%clk 0:03:03]}
4. e3 {[%clk 0:03:02]}  g6 {[%clk 0:03:01]} 5. Nc3 {[%clk 0:03:02]}  d5 {[%clk 0:02:47]} 6. Bb5 {[%clk 0:03:01]}  Bg7 {[%clk 0:02:42]}
7. Na4 {[%clk 0:02:46]}  c4 {[%clk 0:02:04]} 8. bxc4 {[%clk 0:02:18]}  a6 {[%clk 0:02:04]} 9. Bxc6+ {[%clk 0:02:14]}  bxc6 {[%clk 0:02:05]}
10. c5 {[%clk 0:02:10]}  O-O {[%clk 0:01:55]} 11. Nb6 {[%clk 0:02:04]}  Rb8 {[%clk 0:01:54]} 12. O-O {[%clk 0:01:32]}  a5 {[%clk 0:01:30]}
13. Be5 {[%clk 0:01:29]}  Rb7 {[%clk 0:01:28]} 14. d4 {[%clk 0:01:24]}  Be6 {[%clk 0:01:12]} 15. Qe1 {[%clk 0:01:03]}  Nd7 {[%clk 0:01:10]}
16. Bxg7 {[%clk 0:01:01]}  Kxg7 {[%clk 0:01:11]} 17. Qxa5 {[%clk 0:00:47]}  Nxb6 {[%clk 0:01:11]} 18. Rab1 {[%clk 0:00:26]}  Qc7 {[%clk 0:00:12]}
19. cxb6 {[%clk 0:00:26]}  Qd6 {[%clk 0:00:10]} 20. a4 {[%clk 0:00:23]}  Bf5 {[%clk 0:00:08]} 21. Qc5 {[%clk 0:00:19]}  Ra8 {[%clk 0:00:06]}
22. Ra1 {[%clk 0:00:12]}  Qxc5 {[%clk 0:00:06]} 23. dxc5 {[%clk 0:00:12]}  Ra5 {[%clk 0:00:08]} 24. Nd4 {[%clk 0:00:13]}  Bd7 {[%clk 0:00:08]}
25. Nb3 {[%clk 0:00:12]}  Ra6 {[%clk 0:00:07]} 26. a5 {[%clk 0:00:13]}  e5 {[%clk 0:00:06]} 27. f4 {[%clk 0:00:14]}  f6 {[%clk 0:00:06]}
28. fxe5 {[%clk 0:00:15]}  fxe5 {[%clk 0:00:08]} 29. Nc1 {[%clk 0:00:15]}  e4 {[%clk 0:00:03]} 30. Ne2 {[%clk 0:00:14]}  Rb8 {[%clk 0:00:04]}
31. Nd4 {[%clk 0:00:14]}  Rba8 {[%clk 0:00:05]} 32. Rfb1 {[%clk 0:00:14]}  Kf6 {[%clk 0:00:03]} 33. b7 {[%clk 0:00:11]}  Rb8 {[%clk 0:00:04]}
34. Rb6 {[%clk 0:00:12]}  Rxb6 {[%clk 0:00:04]} 35. cxb6 {[%clk 0:00:13]}  c5 {[%clk 0:00:04]} 36. Nb3 {[%clk 0:00:13]}  c4 {[%clk 0:00:04]}
37. Nc5 {[%clk 0:00:13]}  Bc6 {[%clk 0:00:04]} 38. a6 {[%clk 0:00:15]} 1-0

[Event "2026 Biel Blitz Open"]
[Site "Biel, CH"]
[Date "2026.07.19"]
[Round "6"]
[White "Fernandes Barbosa Dos Santos, Gabriel"]
[Black "Ghosh, Diptayan"]
[Result "0-1"]
[Board "6"]
[TimeControl "180+2"]
[WhiteFideId "1354388"]
[BlackFideId "5045207"]
[WhiteElo "2167"]
[BlackElo "2530"]
[WhiteTitle "CM"]
[BlackTitle "GM"]
[WhiteClock "0:00:04"]
[BlackClock "0:00:23"]
[Variant "Standard"]
[EndDate "2026.07.19"]
[EndTime "13:31:44"]

1. e4 {[%clk 0:03:02]}  e5 {[%clk 0:03:03]} 2. Nf3 {[%clk 0:03:02]}  Nc6 {[%clk 0:03:04]} 3. Bc4 {[%clk 0:03:00]}  Nf6 {[%clk 0:03:04]}
4. d3 {[%clk 0:03:01]}  h6 {[%clk 0:03:05]} 5. a4 {[%clk 0:02:48]}  Bc5 {[%clk 0:03:05]} 6. c3 {[%clk 0:02:47]}  a6 {[%clk 0:02:53]}
7. O-O {[%clk 0:02:45]}  d6 {[%clk 0:02:52]} 8. h3 {[%clk 0:02:41]}  O-O {[%clk 0:02:52]} 9. Re1 {[%clk 0:02:36]}  Ba7 {[%clk 0:02:50]}
10. Nbd2 {[%clk 0:02:34]}  Ne7 {[%clk 0:02:49]} 11. Nh4 {[%clk 0:02:16]}  c6 {[%clk 0:02:44]} 12. Bb3 {[%clk 0:02:11]}  Qc7 {[%clk 0:02:25]}
13. Nf1 {[%clk 0:02:04]}  d5 {[%clk 0:02:24]} 14. Qf3 {[%clk 0:01:53]}  dxe4 {[%clk 0:02:13]} 15. dxe4 {[%clk 0:01:48]}  Nd7 {[%clk 0:02:13]}
16. Ng3 {[%clk 0:01:34]}  Nc5 {[%clk 0:02:13]} 17. Bc2 {[%clk 0:01:17]}  Be6 {[%clk 0:02:06]} 18. Bxh6 {[%clk 0:00:51]}  Ng6 {[%clk 0:01:38]}
19. Nhf5 {[%clk 0:00:08]}  gxh6 {[%clk 0:01:14]} 20. Qh5 {[%clk 0:00:08]}  Nf4 {[%clk 0:00:59]} 21. Qg4+ {[%clk 0:00:04]}  Ng6 {[%clk 0:01:00]}
22. Qh5 {[%clk 0:00:05]}  Nf4 {[%clk 0:01:01]} 23. Qg4+ {[%clk 0:00:07]}  Ng6 {[%clk 0:01:02]} 24. Qh5 {[%clk 0:00:05]}  Qd8 {[%clk 0:00:39]}
25. Nxh6+ {[%clk 0:00:04]}  Kg7 {[%clk 0:00:41]} 26. Ngf5+ {[%clk 0:00:04]}  Bxf5 {[%clk 0:00:36]} 27. Nxf5+ {[%clk 0:00:03]}  Kf6 {[%clk 0:00:33]}
28. Rad1 {[%clk 0:00:04]}  Qc8 {[%clk 0:00:28]} 29. Rd6+ {[%clk 0:00:05]}  Ne6 {[%clk 0:00:29]} 30. Qf3 {[%clk 0:00:06]}  Rh8 {[%clk 0:00:25]}
31. Rd2 {[%clk 0:00:05]}  Ngf4 {[%clk 0:00:24]} 32. g3 {[%clk 0:00:06]}  Qg8 {[%clk 0:00:25]} 33. Kf1 {[%clk 0:00:06]}  Rxh3 {[%clk 0:00:26]}
34. Bb3 {[%clk 0:00:05]}  Qh7 {[%clk 0:00:25]} 35. Kg1 {[%clk 0:00:05]}  Rh8 {[%clk 0:00:26]} 36. Nh4 {[%clk 0:00:04]}  Qxh4 {[%clk 0:00:23]} 0-1

[Event "2026 Biel Blitz Open"]
[Site "Biel, CH"]
[Date "2026.07.19"]
[Round "6"]
[White "Alexakis, Dimitris"]
[Black "Gautier, Anand"]
[Result "0-1"]
[Board "7"]
[TimeControl "180+2"]
[WhiteFideId "4277023"]
[BlackFideId "26010186"]
[WhiteElo "2459"]
[BlackElo "2198"]
[WhiteTitle "GM"]
[BlackTitle "FM"]
[WhiteClock "0:00:03"]
[BlackClock "0:00:07"]
[Variant "Standard"]
[EndDate "2026.07.19"]
[EndTime "13:29:15"]

1. e4 {[%clk 0:03:01]}  c5 {[%clk 0:03:04]} 2. Nf3 {[%clk 0:03:02]}  d6 {[%clk 0:03:05]} 3. d4 {[%clk 0:03:03]}  cxd4 {[%clk 0:03:07]}
4. Nxd4 {[%clk 0:03:03]}  Nf6 {[%clk 0:03:08]} 5. Nc3 {[%clk 0:03:03]}  a6 {[%clk 0:03:10]} 6. h3 {[%clk 0:03:04]}  g6 {[%clk 0:03:08]}
7. g4 {[%clk 0:03:05]}  Bg7 {[%clk 0:03:09]} 8. Be3 {[%clk 0:03:02]}  b5 {[%clk 0:02:58]} 9. Bg2 {[%clk 0:02:52]}  Bb7 {[%clk 0:02:59]}
10. g5 {[%clk 0:02:33]}  Nfd7 {[%clk 0:02:39]} 11. h4 {[%clk 0:02:09]}  Nc5 {[%clk 0:02:19]} 12. b4 {[%clk 0:01:57]}  Ne6 {[%clk 0:02:09]}
13. Nd5 {[%clk 0:01:54]}  Nc6 {[%clk 0:01:45]} 14. Nxe6 {[%clk 0:01:38]}  fxe6 {[%clk 0:01:44]} 15. Bb6 {[%clk 0:01:38]}  Qd7 {[%clk 0:01:40]}
16. Nc7+ {[%clk 0:01:36]}  Kf7 {[%clk 0:01:40]} 17. Bh3 {[%clk 0:01:29]}  Nd8 {[%clk 0:01:30]} 18. Nxa8 {[%clk 0:01:12]}  Bxe4 {[%clk 0:01:26]}
19. O-O {[%clk 0:01:01]}  Bxa8 {[%clk 0:00:58]} 20. Bd4 {[%clk 0:01:01]}  Qc6 {[%clk 0:00:55]} 21. f3 {[%clk 0:00:55]}  Rf8 {[%clk 0:00:54]}
22. Bg2 {[%clk 0:00:32]}  Bxd4+ {[%clk 0:00:34]} 23. Qxd4 {[%clk 0:00:33]}  e5 {[%clk 0:00:35]} 24. Qd2 {[%clk 0:00:32]}  Ne6 {[%clk 0:00:33]}
25. Bh3 {[%clk 0:00:17]}  Nf4 {[%clk 0:00:34]} 26. Bg4 {[%clk 0:00:18]}  Kg7 {[%clk 0:00:33]} 27. a4 {[%clk 0:00:19]}  bxa4 {[%clk 0:00:24]}
28. c4 {[%clk 0:00:20]}  Qxc4 {[%clk 0:00:15]} 29. Kh2 {[%clk 0:00:15]}  Qb5 {[%clk 0:00:08]} 30. Rfc1 {[%clk 0:00:14]}  Bd5 {[%clk 0:00:07]}
31. Rc7 {[%clk 0:00:14]}  Rf7 {[%clk 0:00:08]} 32. Qc2 {[%clk 0:00:10]}  Bb3 {[%clk 0:00:08]} 33. Qd2 {[%clk 0:00:10]}  h6 {[%clk 0:00:05]}
34. gxh6+ {[%clk 0:00:09]}  Kxh6 {[%clk 0:00:06]} 35. Rac1 {[%clk 0:00:09]}  a3 {[%clk 0:00:04]} 36. R7c3 {[%clk 0:00:06]}  Bd5 {[%clk 0:00:04]}
37. Rxa3 {[%clk 0:00:07]}  Kg7 {[%clk 0:00:04]} 38. Ra5 {[%clk 0:00:08]}  Qb7 {[%clk 0:00:05]} 39. Ra3 {[%clk 0:00:07]}  Ne6 {[%clk 0:00:05]}
40. Rd3 {[%clk 0:00:06]}  Nd4 {[%clk 0:00:06]} 41. Rxd4 {[%clk 0:00:07]}  exd4 {[%clk 0:00:07]} 42. h5 {[%clk 0:00:07]}  Bxf3 {[%clk 0:00:07]}
43. Qg5 {[%clk 0:00:07]}  Qe4 {[%clk 0:00:05]} 44. Re1 {[%clk 0:00:04]}  Qxe1 {[%clk 0:00:04]} 45. Qxg6+ {[%clk 0:00:04]}  Kf8 {[%clk 0:00:05]}
46. Qh6+ {[%clk 0:00:05]}  Rg7 {[%clk 0:00:05]} 47. Qh8+ {[%clk 0:00:05]}  Kf7 {[%clk 0:00:06]} 48. Bxf3 {[%clk 0:00:03]}  Qf2+ {[%clk 0:00:07]} 0-1

[Event "2026 Biel Blitz Open"]
[Site "Biel, CH"]
[Date "2026.07.19"]
[Round "6"]
[White "Elmi, Saad Abobaker"]
[Black "Liu, Bei"]
[Result "1-0"]
[Board "8"]
[TimeControl "180+2"]
[WhiteFideId "1553259"]
[BlackFideId "8603596"]
[WhiteElo "2409"]
[BlackElo "2170"]
[WhiteTitle "IM"]
[WhiteClock "0:00:07"]
[BlackClock "0:00:07"]
[Variant "Standard"]
[EndDate "2026.07.19"]
[EndTime "13:38:50"]

1. d4 {[%clk 0:03:03]}  d5 {[%clk 0:03:03]} 2. c4 {[%clk 0:03:05]}  c6 {[%clk 0:03:05]} 3. Nf3 {[%clk 0:03:05]}  Nf6 {[%clk 0:03:06]}
4. Nc3 {[%clk 0:03:06]}  dxc4 {[%clk 0:03:07]} 5. a4 {[%clk 0:03:07]}  Bf5 {[%clk 0:03:07]} 6. e3 {[%clk 0:03:06]}  e6 {[%clk 0:03:08]}
7. Bxc4 {[%clk 0:03:07]}  Bb4 {[%clk 0:03:09]} 8. O-O {[%clk 0:03:07]}  O-O {[%clk 0:03:08]} 9. Qe2 {[%clk 0:03:09]}  Nbd7 {[%clk 0:03:08]}
10. Rd1 {[%clk 0:03:10]}  Bg6 {[%clk 0:03:07]} 11. Bd3 {[%clk 0:02:57]}  Bxd3 {[%clk 0:03:00]} 12. Rxd3 {[%clk 0:02:57]}  Qe7 {[%clk 0:03:00]}
13. e4 {[%clk 0:02:58]}  e5 {[%clk 0:03:01]} 14. Bg5 {[%clk 0:02:44]}  exd4 {[%clk 0:02:43]} 15. Rxd4 {[%clk 0:02:43]}  Bc5 {[%clk 0:02:42]}
16. Rd3 {[%clk 0:02:11]}  h6 {[%clk 0:02:43]} 17. Bxf6 {[%clk 0:02:08]}  Nxf6 {[%clk 0:02:43]} 18. e5 {[%clk 0:01:58]}  Nh7 {[%clk 0:02:25]}
19. h4 {[%clk 0:01:55]}  Rfe8 {[%clk 0:02:24]} 20. Ne4 {[%clk 0:01:47]}  Nf8 {[%clk 0:02:19]} 21. Rad1 {[%clk 0:01:46]}  Bb6 {[%clk 0:02:14]}
22. h5 {[%clk 0:01:43]}  Qb4 {[%clk 0:02:06]} 23. b3 {[%clk 0:01:42]}  Ne6 {[%clk 0:02:06]} 24. g3 {[%clk 0:01:39]}  Rad8 {[%clk 0:01:26]}
25. Nd6 {[%clk 0:01:33]}  Qg4 {[%clk 0:01:10]} 26. Nd4 {[%clk 0:01:14]}  Qxe2 {[%clk 0:01:01]} 27. Nxe2 {[%clk 0:01:15]}  Re7 {[%clk 0:01:01]}
28. b4 {[%clk 0:01:02]}  a5 {[%clk 0:00:55]} 29. Nc4 {[%clk 0:00:54]}  Rxd3 {[%clk 0:00:54]} 30. Rxd3 {[%clk 0:00:55]}  Bc7 {[%clk 0:00:56]}
31. bxa5 {[%clk 0:00:44]}  Nc5 {[%clk 0:00:57]} 32. Re3 {[%clk 0:00:44]}  Nxa4 {[%clk 0:00:48]} 33. Nd4 {[%clk 0:00:37]}  Nc5 {[%clk 0:00:46]}
34. Nf5 {[%clk 0:00:34]}  Re8 {[%clk 0:00:41]} 35. f4 {[%clk 0:00:29]}  Ra8 {[%clk 0:00:32]} 36. Ra3 {[%clk 0:00:28]}  Kf8 {[%clk 0:00:27]}
37. Kf2 {[%clk 0:00:27]}  Rd8 {[%clk 0:00:08]} 38. Nfd6 {[%clk 0:00:16]}  Ke7 {[%clk 0:00:06]} 39. Ke3 {[%clk 0:00:15]}  f6 {[%clk 0:00:06]}
40. Nf5+ {[%clk 0:00:11]}  Kf7 {[%clk 0:00:08]} 41. Nfd6+ {[%clk 0:00:12]}  Ke7 {[%clk 0:00:09]} 42. Ne4 {[%clk 0:00:10]}  Nxe4 {[%clk 0:00:08]}
43. Kxe4 {[%clk 0:00:11]}  fxe5 {[%clk 0:00:08]} 44. fxe5 {[%clk 0:00:09]}  Ra8 {[%clk 0:00:08]} 45. Rb3 {[%clk 0:00:10]}  Ra7 {[%clk 0:00:07]}
46. Kf5 {[%clk 0:00:09]}  Kf7 {[%clk 0:00:03]} 47. g4 {[%clk 0:00:10]}  Bd8 {[%clk 0:00:04]} 48. Rxb7+ {[%clk 0:00:09]}  Rxb7 {[%clk 0:00:05]}
49. Nd6+ {[%clk 0:00:10]}  Ke7 {[%clk 0:00:06]} 50. Nxb7 {[%clk 0:00:12]}  Bc7 {[%clk 0:00:07]} 51. a6 {[%clk 0:00:12]}  Bb6 {[%clk 0:00:09]}
52. Nd6 {[%clk 0:00:12]}  Kd7 {[%clk 0:00:07]} 53. Nc4 {[%clk 0:00:11]}  Bd4 {[%clk 0:00:08]} 54. e6+ {[%clk 0:00:11]}  Ke7 {[%clk 0:00:08]}
55. Nd6 {[%clk 0:00:06]}  Kxd6 {[%clk 0:00:07]} 56. e7 {[%clk 0:00:07]} 1-0

[Event "2026 Biel Blitz Open"]
[Site "Biel, CH"]
[Date "2026.07.19"]
[Round "6"]
[White "Hakimifard, Ghazal"]
[Black "Thorfinnsson, Bjorn"]
[Result "0-1"]
[Board "9"]
[TimeControl "180+2"]
[WhiteFideId "12506540"]
[BlackFideId "2300982"]
[WhiteElo "2130"]
[BlackElo "2396"]
[WhiteTitle "WGM"]
[BlackTitle "IM"]
[WhiteClock "0:00:37"]
[BlackClock "0:01:43"]
[Variant "Standard"]
[EndDate "2026.07.19"]
[EndTime "13:26:44"]

1. e4 {[%clk 0:03:02]}  e5 {[%clk 0:03:04]} 2. Nf3 {[%clk 0:03:03]}  Nc6 {[%clk 0:03:05]} 3. Bb5 {[%clk 0:03:05]}  Nge7 {[%clk 0:03:06]}
4. c3 {[%clk 0:03:03]}  d6 {[%clk 0:03:07]} 5. O-O {[%clk 0:03:01]}  Bd7 {[%clk 0:03:09]} 6. Re1 {[%clk 0:03:01]}  Ng6 {[%clk 0:03:04]}
7. d4 {[%clk 0:03:00]}  Be7 {[%clk 0:03:11]} 8. d5 {[%clk 0:02:51]}  Nb8 {[%clk 0:03:12]} 9. Bxd7+ {[%clk 0:02:52]}  Nxd7 {[%clk 0:03:13]}
10. c4 {[%clk 0:02:53]}  O-O {[%clk 0:03:13]} 11. Nc3 {[%clk 0:02:55]}  a5 {[%clk 0:03:15]} 12. Rb1 {[%clk 0:02:43]}  Nc5 {[%clk 0:03:10]}
13. Be3 {[%clk 0:02:43]}  b6 {[%clk 0:03:10]} 14. Qc2 {[%clk 0:02:40]}  Qd7 {[%clk 0:03:08]} 15. b3 {[%clk 0:02:30]}  f5 {[%clk 0:03:08]}
16. exf5 {[%clk 0:02:27]}  Rxf5 {[%clk 0:03:09]} 17. Nd2 {[%clk 0:02:15]}  Raf8 {[%clk 0:03:02]} 18. a3 {[%clk 0:02:02]}  Bg5 {[%clk 0:02:37]}
19. b4 {[%clk 0:02:02]}  Bxe3 {[%clk 0:02:25]} 20. fxe3 {[%clk 0:02:04]}  Rf2 {[%clk 0:02:11]} 21. bxc5 {[%clk 0:01:36]}  Nh4 {[%clk 0:01:39]}
22. Qe4 {[%clk 0:00:40]}  Rxg2+ {[%clk 0:01:39]} 23. Qxg2 {[%clk 0:00:36]}  Nxg2 {[%clk 0:01:40]} 24. Kxg2 {[%clk 0:00:37]}  Qg4+ {[%clk 0:01:42]}
25. Kh1 {[%clk 0:00:37]}  Rf2 {[%clk 0:01:43]} 26. Rg1 {[%clk 0:00:37]}  Qh3 {[%clk 0:01:43]} 0-1

[Event "2026 Biel Blitz Open"]
[Site "Biel, CH"]
[Date "2026.07.19"]
[Round "6"]
[White "Shukhman, Anna"]
[Black "Ashwath Kaushik"]
[Result "1-0"]
[Board "10"]
[TimeControl "180+2"]
[WhiteFideId "54180058"]
[BlackFideId "33387230"]
[WhiteElo "2392"]
[BlackElo "2122"]
[WhiteTitle "WGM"]
[BlackTitle "FM"]
[WhiteClock "0:00:13"]
[BlackClock "0:00:13"]
[Variant "Standard"]
[EndDate "2026.07.19"]
[EndTime "13:30:15"]

1. e4 {[%clk 0:03:03]}  e6 {[%clk 0:03:04]} 2. d4 {[%clk 0:03:04]}  d5 {[%clk 0:03:05]} 3. Nc3 {[%clk 0:03:05]}  Nf6 {[%clk 0:03:06]}
4. e5 {[%clk 0:03:06]}  Nfd7 {[%clk 0:03:08]} 5. f4 {[%clk 0:03:07]}  c5 {[%clk 0:03:06]} 6. Nf3 {[%clk 0:03:07]}  Nc6 {[%clk 0:03:10]}
7. Be3 {[%clk 0:03:08]}  a6 {[%clk 0:03:12]} 8. Qd2 {[%clk 0:03:09]}  b5 {[%clk 0:03:13]} 9. h4 {[%clk 0:03:09]}  Qb6 {[%clk 0:03:14]}
10. a3 {[%clk 0:03:02]}  cxd4 {[%clk 0:03:14]} 11. Nxd4 {[%clk 0:03:02]}  Bc5 {[%clk 0:03:14]} 12. Nce2 {[%clk 0:02:51]}  a5 {[%clk 0:03:04]}
13. Rh3 {[%clk 0:02:49]}  Bb7 {[%clk 0:03:03]} 14. h5 {[%clk 0:02:32]}  b4 {[%clk 0:03:01]} 15. a4 {[%clk 0:02:27]}  Ba6 {[%clk 0:02:59]}
16. Nxc6 {[%clk 0:02:14]}  Qxc6 {[%clk 0:02:54]} 17. h6 {[%clk 0:02:10]}  Bxe3 {[%clk 0:02:48]} 18. Rxe3 {[%clk 0:01:55]}  gxh6 {[%clk 0:02:12]}
19. Nd4 {[%clk 0:01:53]}  Qb6 {[%clk 0:02:12]} 20. Nb5 {[%clk 0:01:29]}  Nc5 {[%clk 0:01:32]} 21. Qd4 {[%clk 0:01:22]}  Bxb5 {[%clk 0:01:25]}
22. Bxb5+ {[%clk 0:01:22]}  Ke7 {[%clk 0:01:25]} 23. O-O-O {[%clk 0:01:20]}  Nd7 {[%clk 0:01:11]} 24. Qd2 {[%clk 0:01:13]}  Rhg8 {[%clk 0:01:09]}
25. Rh3 {[%clk 0:01:09]}  Nc5 {[%clk 0:01:03]} 26. f5 {[%clk 0:01:04]}  exf5 {[%clk 0:00:45]} 27. Rxh6 {[%clk 0:01:02]}  Ne6 {[%clk 0:00:32]}
28. Rxh7 {[%clk 0:00:47]}  Rh8 {[%clk 0:00:17]} 29. Qxd5 {[%clk 0:00:30]}  Rhd8 {[%clk 0:00:07]} 30. Qf3 {[%clk 0:00:28]}  Rxd1+ {[%clk 0:00:07]}
31. Qxd1 {[%clk 0:00:28]}  Rd8 {[%clk 0:00:07]} 32. Qe1 {[%clk 0:00:28]}  Qd4 {[%clk 0:00:07]} 33. Qh4+ {[%clk 0:00:15]}  Qxh4 {[%clk 0:00:04]}
34. Rxh4 {[%clk 0:00:15]}  Rd5 {[%clk 0:00:03]} 35. Rh8 {[%clk 0:00:12]}  Rxe5 {[%clk 0:00:06]} 36. Ra8 {[%clk 0:00:12]}  Nd4 {[%clk 0:00:05]}
37. Rxa5 {[%clk 0:00:11]}  f4 {[%clk 0:00:06]} 38. Ra7+ {[%clk 0:00:11]}  Kf6 {[%clk 0:00:05]} 39. Bd3 {[%clk 0:00:10]}  Rg5 {[%clk 0:00:06]}
40. Be4 {[%clk 0:00:10]}  Re5 {[%clk 0:00:06]} 41. Ba8 {[%clk 0:00:08]}  Re2 {[%clk 0:00:06]} 42. Rd7 {[%clk 0:00:04]}  Nxc2 {[%clk 0:00:07]}
43. Bf3 {[%clk 0:00:04]}  Rf2 {[%clk 0:00:08]} 44. Rd2 {[%clk 0:00:04]}  Rxd2 {[%clk 0:00:07]} 45. Kxd2 {[%clk 0:00:05]}  Nd4 {[%clk 0:00:07]}
46. Kd3 {[%clk 0:00:05]}  Ke5 {[%clk 0:00:09]} 47. a5 {[%clk 0:00:05]}  Nb3 {[%clk 0:00:08]} 48. Kc4 {[%clk 0:00:04]}  Nd2+ {[%clk 0:00:06]}
49. Kxb4 {[%clk 0:00:05]}  Kd6 {[%clk 0:00:06]} 50. Kc3 {[%clk 0:00:05]}  Nf1 {[%clk 0:00:06]} 51. b4 {[%clk 0:00:05]}  Ne3 {[%clk 0:00:07]}
52. Kd4 {[%clk 0:00:05]}  f5 {[%clk 0:00:08]} 53. a6 {[%clk 0:00:05]}  Nc2+ {[%clk 0:00:06]} 54. Kc4 {[%clk 0:00:05]}  Na3+ {[%clk 0:00:07]}
55. Kb3 {[%clk 0:00:06]}  Nb5 {[%clk 0:00:08]} 56. Ka4 {[%clk 0:00:07]}  Na7 {[%clk 0:00:07]} 57. Ka5 {[%clk 0:00:08]}  Kc7 {[%clk 0:00:07]}
58. b5 {[%clk 0:00:10]}  Nc8 {[%clk 0:00:08]} 59. a7 {[%clk 0:00:05]}  Nxa7 {[%clk 0:00:08]} 60. b6+ {[%clk 0:00:09]}  Kb8 {[%clk 0:00:10]}
61. bxa7+ {[%clk 0:00:10]}  Kxa7 {[%clk 0:00:11]} 62. Kb5 {[%clk 0:00:11]}  Kb8 {[%clk 0:00:12]} 63. Kc5 {[%clk 0:00:12]}  Kc7 {[%clk 0:00:13]}
64. Kd5 {[%clk 0:00:13]} 1-0

[Event "2026 Biel Blitz Open"]
[Site "Biel, CH"]
[Date "2026.07.19"]
[Round "6"]
[White "Dong, Hongfu"]
[Black "Habibi, Ali"]
[Result "1-0"]
[Board "11"]
[TimeControl "180+2"]
[WhiteFideId "8626960"]
[BlackFideId "4604393"]
[WhiteElo "2290"]
[BlackElo "2116"]
[BlackTitle "IM"]
[WhiteClock "0:00:49"]
[BlackClock "0:00:08"]
[Variant "Standard"]
[EndDate "2026.07.19"]
[EndTime "13:28:36"]

1. e4 {[%clk 0:03:02]}  c5 {[%clk 0:03:03]} 2. Nf3 {[%clk 0:03:03]}  a6 {[%clk 0:03:05]} 3. c4 {[%clk 0:03:04]}  e6 {[%clk 0:03:03]}
4. Nc3 {[%clk 0:03:01]}  Qc7 {[%clk 0:03:04]} 5. d4 {[%clk 0:03:02]}  cxd4 {[%clk 0:03:04]} 6. Nxd4 {[%clk 0:03:03]}  d6 {[%clk 0:03:05]}
7. Be3 {[%clk 0:02:44]}  Nf6 {[%clk 0:03:05]} 8. Be2 {[%clk 0:02:45]}  Be7 {[%clk 0:03:06]} 9. g4 {[%clk 0:02:46]}  h6 {[%clk 0:02:58]}
10. Rc1 {[%clk 0:02:45]}  Nbd7 {[%clk 0:02:56]} 11. f4 {[%clk 0:02:40]}  g6 {[%clk 0:02:41]} 12. O-O {[%clk 0:02:17]}  b6 {[%clk 0:02:16]}
13. Bf3 {[%clk 0:01:44]}  Bb7 {[%clk 0:02:17]} 14. Qe2 {[%clk 0:01:41]}  Rc8 {[%clk 0:02:14]} 15. b3 {[%clk 0:01:42]}  Qb8 {[%clk 0:02:06]}
16. Bg2 {[%clk 0:01:26]}  h5 {[%clk 0:01:43]} 17. h3 {[%clk 0:01:08]}  hxg4 {[%clk 0:01:43]} 18. hxg4 {[%clk 0:01:09]}  e5 {[%clk 0:01:42]}
19. g5 {[%clk 0:01:01]}  Nh5 {[%clk 0:01:38]} 20. Nd5 {[%clk 0:00:51]}  exd4 {[%clk 0:01:25]} 21. Bxd4 {[%clk 0:00:52]}  Rh7 {[%clk 0:01:20]}
22. Qg4 {[%clk 0:00:53]}  Rd8 {[%clk 0:00:50]} 23. f5 {[%clk 0:00:55]}  Bc8 {[%clk 0:00:38]} 24. fxg6 {[%clk 0:00:53]}  fxg6 {[%clk 0:00:38]}
25. Qe6 {[%clk 0:00:47]}  Nf8 {[%clk 0:00:04]} 26. Rxf8+ {[%clk 0:00:44]}  Kxf8 {[%clk 0:00:08]} 27. Rf1+ {[%clk 0:00:45]}  Ke8 {[%clk 0:00:09]}
28. Qxg6+ {[%clk 0:00:46]}  Kd7 {[%clk 0:00:09]} 29. Qxh7 {[%clk 0:00:47]}  Ng3 {[%clk 0:00:10]} 30. Qxe7+ {[%clk 0:00:47]}  Kc6 {[%clk 0:00:08]}
31. Nb4# {[%clk 0:00:49]} 1-0